bitfinex/quotes_ETHUSD_20220103
["timestamp","ask_amount","ask_price","bid_price","bid_amount"]
[1641220589399,1.21058383,3837.9,3837.8,5.5923]
[1641220589599,1.21058383,3837.9,3837.8,5.2113]
[1641220590101,0.00454738,3837.9,3837.8,5.2113]
[1641220591405,0.00454738,3837.9,3837.8,8.22961395]
[1641220591602,0.00454738,3837.9,3837.8,8.88085395]
[1641220592041,0.00454738,3837.9,3837.8,10.12333691]
[1641220592443,0.00454738,3837.9,3837.8,11.12333691]
[1641220592648,0.00454738,3837.9,3837.8,9.88085395]
[1641220592848,0.00454738,3837.9,3837.8,8.88085395]
[1641220593345,0.00454738,3837.9,3837.8,9.88085395]
[1641220593747,0.00454738,3837.9,3837.8,9.88222971]
[1641220594553,0.00454738,3837.9,3837.8,8.88222971]
[1641220594751,0.00454738,3837.9,3837.8,7.84998971]
[1641220595977,0.00454738,3837.9,3837.8,9.09265271]
[1641220596987,0.00454738,3837.9,3837.8,7.84998971]
[1641220597383,1.23876385,3838.0,3837.9,4.95]
[1641220597583,0.65133,3838.3,3837.9,5.2112]
[1641220597788,0.65133,3838.3,3837.9,7.84851395]
[1641220597984,0.30170527,3838.2,3837.9,7.84851395]
[1641220598386,0.00113685,3838.1,3837.9,7.84851395]
[1641220598586,0.3,3838.2,3838.0,2.63731395]
[1641220598587,0.25113685,3838.2,3838.0,2.63731395]
[1641220598787,1.12818863,3838.2,3838.1,5.2109]
[1641220600140,1.42818863,3838.2,3838.1,7.84821395]
[1641220601843,1.12818863,3838.2,3838.1,7.84821395]
[1641220602844,1.33507781,3838.3,3838.1,7.84821395]
[1641220604295,1.33507781,3838.3,3838.2,2.63731395]
[1641220604698,1.30377875,3838.3,3838.2,2.63731395]
[1641220604902,1.33721318,3838.3,3838.2,2.63731395]
[1641220605097,1.30377875,3838.3,3838.2,2.63731395]
[1641220605898,0.65246685,3838.3,3838.2,2.63731395]
[1641220606298,0.65246685,3838.3,3838.2,7.84811395]
[1641220612191,0.60246685,3838.3,3838.2,7.84811395]
[1641220613097,0.06064421,3839.0,3838.3,9.2]
[1641220613296,0.06064421,3839.0,3838.9,13.958]
[1641220613497,4.421e-05,3839.0,3838.9,20.5488]
[1641220613696,3.8164,3840.4,3839.0,9.2]
[1641220613697,0.0601,3840.4,3839.0,9.2]
[1641220613895,0.0599,3840.5,3839.5,1.34571886]
[1641220614101,6.198865,3840.6,3840.2,4.758]
[1641220614371,4.897125,3840.6,3840.3,5.5889]
[1641220614571,2.6563545,3840.8,3840.4,9.2]
[1641220614769,2.6563545,3840.8,3840.7,13.308]
[1641220614968,2.6563545,3840.8,3840.7,10.3464]
[1641220615273,1.77026581,3841.3,3840.7,11.3464]
[1641220615469,1.77026581,3841.3,3841.0,0.65072]
[1641220615670,1.72026581,3841.3,3841.1,5.5878]
[1641220616471,0.65071,3841.4,3841.2,2.63731395]
[1641220616677,0.60071,3841.4,3841.3,5.5876]
[1641220617075,0.03315142,3841.6,3841.3,5.5876]
[1641220617276,0.03315142,3841.6,3841.4,0.65061]
[1641220617475,0.00568424,3841.5,3841.4,0.60061]
[1641220617674,0.00568424,3841.5,3841.4,6.18801]
[1641220619088,0.00568424,3841.5,3841.4,5.5874]
[1641220619291,0.00568424,3841.5,3841.4,6.44025989]
[1641220619690,0.00568424,3841.5,3841.4,5.2064]
[1641220622753,0.00568424,3841.5,3841.4,8.7874]
[1641220622954,0.00568424,3841.5,3841.4,6.5874]
[1641220623160,0.00568424,3841.5,3841.4,5.5874]
[1641220626310,0.06053492,3842.4,3841.6,0.0056]
[1641220626513,0.06053492,3842.4,3842.0,0.65046]
[1641220626709,0.06053492,3842.4,3842.1,5.5865]
[1641220626710,0.00397896,3842.2,3842.1,5.5865]
[1641220627310,0.01,3842.6,3842.2,9.2]
[1641220627515,0.01,3842.6,3842.3,6.5862]
[1641220627714,0.01,3842.6,3842.4,0.65032]
[1641220627715,0.00170527,3842.5,3842.4,0.65032]
[1641220627914,0.00170527,3842.5,3842.4,6.23642]
[1641220628113,0.00170527,3842.5,3842.4,7.23642]
[1641220628612,0.01,3842.6,3842.4,7.23642]
[1641220628813,0.01,3842.6,3842.5,9.75]
[1641220629013,0.01,3842.6,3842.5,6.5859]
[1641220629655,1.83798941,3843.3,3842.6,9.2]
[1641220629858,1.83798941,3843.3,3842.9,0.65028]
[1641220630058,0.00397897,3843.2,3843.0,5.5853]
[1641220630457,0.00341054,3843.1,3843.0,5.5853]
[1641220631563,1.83798941,3843.3,3843.0,6.5853]
[1641220631759,1.78798941,3843.3,3843.0,6.5853]
[1641220632159,6.727e-05,3843.4,3843.1,1.0]
[1641220632365,6.727e-05,3843.4,3843.3,13.958]
[1641220632561,2.88335604,3843.7,3843.3,19.55682309]
[1641220632761,2.88335604,3843.7,3843.6,4.758]
[1641220633025,3.11868861,3844.5,3843.9,9.2]
[1641220633215,2.64073298,3844.4,3844.1,13.958]
[1641220633413,2.64073298,3844.4,3844.1,19.5418]
[1641220633623,2.56774621,3844.7,3844.6,9.22789381]
[1641220633816,3.89738558,3845.0,3844.7,9.2]
[1641220634016,2.90404092,3845.9,3844.8,10.66411776]
[1641220634216,4.67198891,3845.9,3845.4,5.85340505]
[1641220634415,4.67198891,3845.9,3845.8,4.758]
[1641220634616,2.46369111,3846.0,3845.8,10.3395]
[1641220634814,2.27960697,3846.0,3845.8,10.1895]
[1641220635517,4.31937136,3846.5,3846.1,9.84962]
[1641220635717,5.42852591,3847.3,3846.5,5.3]
[1641220635718,3.49035286,3847.3,3846.5,5.3]
[1641220636016,3.49035286,3847.3,3846.8,4.608]
[1641220636220,3.49035286,3847.3,3847.2,4.758]
[1641220636415,0.83921997,3847.3,3847.2,10.3376]
[1641220636616,2.90594335,3847.4,3847.2,11.3376]
[1641220636857,2.90594335,3847.4,3847.3,4.758]
[1641220637058,2.80594335,3847.4,3847.3,11.3375]
[1641220637260,0.65836766,3847.5,3847.3,10.3375]
[1641220637458,2.81889276,3847.4,3847.3,10.3375]
[1641220637661,0.65836766,3847.5,3847.3,10.3375]
[1641220637863,0.65836766,3847.5,3847.3,13.28407998]
[1641220638069,3.47726042,3847.5,3847.3,13.28407998]
[1641220638265,0.61334363,3847.5,3847.3,13.28407998]
[1641220638463,0.61334363,3847.5,3847.3,10.3375]
[1641220638669,0.61334363,3847.5,3847.3,10.33887236]
[1641220639468,0.61334363,3847.5,3847.4,0.64949]
[1641220639666,0.61334363,3847.5,3847.4,6.22879]
[1641220639867,0.61448048,3847.5,3847.4,6.22879]
[1641220640065,2.4366176,3847.6,3847.4,5.5793]
[1641220640264,2.4366176,3847.6,3847.5,1.0]
[1641220640501,2.4366176,3847.6,3847.5,5.5792]
[1641220642008,2.4366176,3847.6,3847.5,10.3372]
[1641220642209,2.4366176,3847.6,3847.5,6.1982]
[1641220643012,2.4366176,3847.6,3847.5,11.3372]
[1641220643510,2.50535494,3847.7,3847.6,9.2]
[1641220643715,2.50535494,3847.7,3847.6,22.35589276]
[1641220643911,2.54769148,3847.9,3847.7,9.2]
[1641220644113,2.54769148,3847.9,3847.8,6.1978]
[1641220644353,2.54769148,3847.9,3847.8,11.3368]
[1641220644552,2.65657906,3848.1,3847.8,11.3368]
[1641220644754,2.65657906,3848.1,3847.9,5.40738]
[1641220644954,2.65657906,3848.1,3847.9,10.98598]
[1641220645153,2.41804266,3848.0,3847.9,11.98598]
[1641220645554,2.65657906,3848.1,3847.9,11.98598]
[1641220645755,2.65657906,3848.1,3848.0,4.758]
[1641220645955,2.65657906,3848.1,3848.0,11.3365]
[1641220648017,3.10997236,3848.2,3848.1,9.2]
[1641220648216,3.10997236,3848.2,3848.1,19.5364]
[1641220648416,3.11110921,3848.2,3848.1,11.3364]
[1641220649018,2.66384292,3848.3,3848.1,11.6364]
[1641220649218,2.66384292,3848.3,3848.2,4.758]
[1641220649422,2.78257536,3848.4,3848.3,8.15]
[1641220649423,0.25273828,3848.4,3848.3,8.15]
[1641220649620,3.47931902,3848.4,3848.3,11.3361]
[1641220649820,0.25387513,3848.4,3848.3,11.3361]
[1641220650022,3.89606606,3848.8,3848.4,0.64925]
[1641220650223,12.64704783,3848.5,3848.4,10.286]
[1641220650417,12.64704783,3848.5,3848.4,11.286]
[1641220650418,2.77046709,3848.5,3848.4,11.286]
[1641220652246,7.77046709,3848.5,3848.4,11.286]
[1641220652446,7.77046709,3848.5,3848.4,14.84338918]
[1641220652653,7.77046709,3848.5,3848.4,15.89336724]
[1641220652654,2.35745709,3848.5,3848.4,15.89336724]
[1641220652852,2.35745709,3848.5,3848.4,12.60115743]
[1641220652853,1.24890342,3848.5,3848.4,12.60115743]
[1641220653150,2.71220486,3848.8,3848.5,9.0]
[1641220653349,2.71220486,3848.8,3848.6,10.3357]
[1641220653750,2.71220486,3848.8,3848.6,11.3357]
[1641220654354,2.71220486,3848.8,3848.7,9.25]
[1641220654559,2.71220486,3848.8,3848.7,11.6356]
[1641220654755,2.71447855,3848.8,3848.7,11.6356]
[1641220655053,2.73525982,3848.9,3848.7,11.6356]
[1641220655054,0.74049467,3848.9,3848.7,11.6356]
[1641220655255,0.74049467,3848.9,3848.8,4.758]
[1641220655523,1.83078276,3849.1,3849.0,3.85]
[1641220655707,2.86507697,3849.2,3849.0,10.98438]
[1641220655708,2.48778852,3849.2,3849.0,10.98438]
[1641220655908,2.48778852,3849.2,3849.1,14.008]
[1641220656109,0.12220531,3849.3,3849.1,21.77664559]
[1641220656308,2.28871816,3849.4,3849.3,9.2]
[1641220656508,1.57898353,3849.4,3849.3,24.12174436]
[1641220656710,2.33212394,3849.6,3849.5,9.89897]
[1641220656914,2.28212394,3849.6,3849.5,10.98347]
[1641220657119,3.55370904,3850.0,3849.7,4.95]
[1641220657313,3.49293821,3850.0,3849.7,11.63223]
[1641220657518,3.49293821,3850.0,3849.7,12.63223]
[1641220657918,3.49293821,3850.0,3849.7,10.3342]
[1641220658116,4.0630575,3849.9,3849.7,10.3342]
[1641220658316,3.04591403,3849.9,3849.7,10.3342]
[1641220658518,3.04591403,3849.9,3849.7,13.27632542]
[1641220659955,5.93485661,3849.8,3849.7,13.27632542]
[1641220660154,7.02815708,3849.8,3849.7,13.27632542]
[1641220660554,12.02815708,3849.8,3849.7,13.27632542]
[1641220662361,12.02815708,3849.8,3849.7,16.46441329]
[1641220662556,12.02815708,3849.8,3849.7,17.46441329]
[1641220662757,12.02815708,3849.8,3849.7,14.27632542]
[1641220663797,12.02815708,3849.8,3849.7,12.1572769]
[1641220664003,12.02815708,3849.8,3849.7,6.76793785]
[1641220664201,12.02815708,3849.8,3849.6,8.787e-05]
[1641220664202,2.8674,3849.7,3849.6,8.787e-05]
[1641220664401,6.08223604,3849.7,3849.0,3.73296645]
[1641220664601,6.08223604,3849.7,3848.4,5.91111048]
[1641220664602,0.64957,3848.9,3848.4,4.5530534]
[1641220664801,3.20222832,3848.8,3848.5,5.1966]
[1641220665106,3.20222832,3848.8,3846.3,5.1247751]
[1641220665107,9.25,3848.4,3848.0,0.13035417]
[1641220665304,0.0126204,3848.1,3847.6,4.22335471]
[1641220665802,0.64961,3847.9,3847.6,4.22335471]
[1641220666200,1.39316732,3847.7,3847.6,0.06041927]
[1641220666601,1.39316732,3847.7,3847.6,0.06724035]
[1641220667248,1.39316732,3847.7,3847.6,0.00682108]
[1641220667445,1.39316732,3847.7,3847.6,5.20482108]
[1641220667651,1.39316732,3847.7,3847.6,5.198]
[1641220668154,1.39316732,3847.7,3847.3,0.00852635]
[1641220668155,0.5356,3847.6,3847.3,2.635e-05]
[1641220668452,0.5356,3847.6,3846.6,0.92368431]
[1641220668453,0.01209,3847.4,3846.6,0.92368431]
[1641220668753,9.25,3846.6,3844.7,0.381]
[1641220668954,9.25,3846.6,3845.7,1.59345863]
[1641220668955,0.6501101,3845.8,3845.7,1.59345863]
[1641220669154,0.65024,3845.4,3844.6,0.02789381]
[1641220669353,3.53081894,3845.3,3844.6,9.381e-05]
[1641220669550,4.85,3844.6,3842.9,5.83007076]
[1641220669749,3.14981894,3844.5,3842.9,5.83007076]
[1641220669951,1.14195494,3844.7,3843.0,0.01023162]
[1641220670160,3.14981894,3844.9,3843.0,0.01023162]
[1641220670350,0.65021,3844.7,3843.1,0.381]
[1641220670609,0.0022737,3845.2,3843.7,0.65017]
[1641220670809,0.00170527,3845.1,3843.8,0.381]
[1641220671007,0.00170527,3845.1,3843.8,0.38668423]
[1641220671206,0.00113685,3845.0,3843.9,0.00511581]
[1641220671411,0.00113685,3845.0,3844.0,5.2023]
[1641220671610,3.29006796,3845.3,3844.0,5.2023]
[1641220671611,1.33881747,3844.6,3844.0,5.2023]
[1641220671808,1.33881747,3844.6,3844.0,5.15627896]
[1641220672009,0.0022737,3844.5,3844.0,5.15627896]
[1641220672410,0.00170527,3844.4,3844.0,5.15627896]
[1641220672609,5.0,3844.9,3844.1,8.7]
[1641220673012,1.25070113,3844.7,3844.1,0.00170527]
[1641220673414,0.00113685,3844.6,3844.1,0.00170527]
[1641220673615,0.00113685,3844.6,3844.1,1.00170527]
[1641220674018,0.00113685,3844.6,3844.2,0.00113685]
[1641220674461,0.00113685,3844.6,3844.3,5.2485]
[1641220675370,0.00113685,3844.6,3844.4,1.0]
[1641220675562,0.00113685,3844.6,3844.5,12.5482]
[1641220675961,0.00113685,3844.6,3844.5,6.2482]
[1641220676765,5.0,3844.9,3844.5,6.2482]
[1641220676766,5.65014,3844.9,3844.5,6.2482]
[1641220677162,0.00113684,3844.8,3844.5,5.2482]
[1641220677568,3.09217248,3844.8,3844.5,5.2482]
[1641220677766,2.60197684,3844.8,3844.5,5.2482]
[1641220678202,2.55197684,3844.8,3844.5,5.2482]
[1641220679004,0.65021,3844.7,3844.5,5.2482]
[1641220679403,0.00113684,3844.8,3844.5,5.2482]
[1641220680804,1.30150684,3844.8,3844.5,5.2482]
[1641220681203,2.64687077,3844.7,3844.5,5.2482]
[1641220681404,0.65019,3844.7,3844.5,5.2482]
[1641220682768,0.65131684,3844.8,3844.5,5.1982]
[1641220683573,4.85132584,3844.9,3844.5,5.1982]
[1641220683777,4.85132584,3844.9,3844.6,0.00113685]
[1641220683976,4.85132584,3844.9,3844.7,5.298]
[1641220684873,4.85132584,3844.9,3844.8,1.0]
[1641220685075,4.85132584,3844.9,3844.7,5.298]
[1641220685275,4.85132584,3844.9,3844.8,8.24384862]
[1641220688002,4.85132584,3844.9,3844.8,9.24384862]
[1641220688204,4.85132584,3844.9,3844.8,10.84309701]
[1641220688807,4.85132584,3844.9,3844.8,9.24384862]
[1641220689003,1.31644935,3844.9,3844.8,9.24384862]
[1641220690855,1.31644935,3844.9,3844.8,8.24384862]
[1641220692055,1.31644935,3844.9,3844.8,9.02954862]
[1641220693300,1.31644935,3844.9,3844.8,10.02954862]
[1641220695209,4.46088,3846.4,3844.8,10.02954862]
[1641220695210,3.1608,3846.4,3845.8,10.0357]
[1641220695408,0.06017958,3846.6,3846.0,0.7857]
[1641220695604,0.06017958,3846.6,3846.2,0.7857]
[1641220695803,0.06017958,3846.6,3846.4,0.7857]
[1641220696004,0.06017958,3846.6,3846.5,15.7122]
[1641220696402,0.0704112,3846.6,3846.5,6.4622]
[1641220696859,0.0704112,3846.6,3846.5,6.0812]
[1641220697259,0.01023162,3846.6,3846.5,6.0812]
[1641220697458,0.01023162,3846.6,3846.5,9.02724862]
[1641220697659,0.01023162,3846.6,3846.5,8.59324862]
[1641220698663,2.68949609,3846.6,3846.5,8.59324862]
[1641220698868,2.68949609,3846.6,3846.5,5.6472]
[1641220699264,2.77184798,3846.6,3846.5,5.6472]
[1641220699465,2.67736091,3846.6,3846.5,5.6472]
[1641220700067,2.67736091,3846.6,3846.5,0.44728]
[1641220700266,0.01023162,3846.6,3846.5,0.44728]
[1641220700514,2.75996539,3846.6,3846.5,0.44728]
[1641220700706,1.18948332,3846.5,3846.2,0.06052816]
[1641220700911,9.26284297,3846.3,3846.2,0.06052816]
[1641220701109,0.650116,3845.9,3844.5,1.20621714]
[1641220701310,2.84877545,3845.8,3844.5,1.20621714]
[1641220701515,2.85445969,3845.8,3844.2,0.381]
[1641220701711,0.00511581,3845.7,3844.2,0.381]
[1641220701912,1.31920144,3845.1,3844.3,0.00284212]
[1641220702111,0.65014,3844.8,3844.3,0.00284212]
[1641220702317,3.685e-05,3845.0,3844.6,4.758]
[1641220702516,0.00170527,3845.1,3844.9,4.758]
[1641220702720,11.1943,3846.6,3844.7,1.68257842]
[1641220702721,0.00515266,3845.9,3844.7,1.68257842]
[1641220702915,3.10423756,3846.5,3844.7,2.30157842]
[1641220703117,0.00458424,3845.8,3845.4,0.64991]
[1641220703318,2.01118737,3846.3,3845.5,0.381]
[1641220703516,0.00401581,3845.7,3845.5,0.312]
[1641220703719,0.64996,3845.9,3845.5,0.312]
[1641220703916,0.00344739,3845.6,3845.5,0.312]
[1641220704123,0.00458424,3845.8,3845.5,0.312]
[1641220704349,0.00344739,3845.6,3845.5,0.312]
[1641220704656,1.30006,3846.0,3845.5,0.312]
[1641220705057,0.65124685,3845.8,3845.5,0.312]
[1641220705258,2.71485054,3845.7,3845.5,0.312]
[1641220705661,3.06696362,3845.7,3844.8,0.0011]
[1641220705858,1.30035,3845.5,3844.8,0.0011]
[1641220706157,1.17985403,3844.9,3844.7,0.00511581]
[1641220706360,0.65018,3845.4,3844.7,0.00511581]
[1641220706562,0.65018,3845.4,3844.8,5.2015]
[1641220706563,1.30036,3845.4,3844.8,5.2015]
[1641220706961,0.00113685,3845.8,3844.9,0.00397896]
[1641220707162,0.00113685,3845.8,3845.0,5.2016]
[1641220707362,1.27094448,3845.6,3845.1,0.312]
[1641220707562,1.27094448,3845.6,3845.2,5.2013]
[1641220707765,0.65004,3845.6,3845.2,5.20357369]
[1641220708006,0.65004,3845.6,3845.3,1.00170527]
[1641220708203,0.65004,3845.6,3845.4,5.513]
[1641220708400,0.65004,3845.6,3845.4,5.51413685]
[1641220709206,0.65004,3845.6,3845.4,5.20213685]
[1641220710506,1.30017,3845.6,3845.5,4.55478249]
[1641220710705,1.30017,3845.6,3845.5,9.75568249]
[1641220711106,1.30017,3845.6,3845.5,8.14649473]
[1641220717811,1.30017,3845.6,3845.5,9.75525628]
[1641220718618,1.30017,3845.6,3845.5,8.14649473]
[1641220720059,1.30017,3845.6,3845.5,13.14649473]
[1641220720658,1.30017,3845.6,3845.5,14.75525628]
[1641220720860,1.3002,3845.7,3845.5,14.75525628]
[1641220721865,0.65004,3845.6,3845.5,14.75525628]
[1641220722266,1.30017,3845.6,3845.5,14.75525628]
[1641220722669,1.30017,3845.6,3845.5,13.14649473]
[1641220723516,1.30017,3845.6,3845.5,12.1572769]
[1641220723517,4.33748964,3845.6,3845.5,12.1572769]
[1641220723712,1.30017,3845.6,3845.5,12.1572769]
[1641220724512,2.63972671,3845.6,3845.5,12.1572769]
[1641220727148,5.28233705,3845.6,3845.5,12.1572769]
[1641220727762,5.26500732,3845.6,3845.5,12.1572769]
[1641220727954,5.30622752,3845.6,3845.5,12.1572769]
[1641220728354,5.27474486,3845.6,3845.5,12.1572769]
[1641220729256,2.63972671,3845.6,3845.5,12.1572769]
[1641220729455,5.30038671,3845.6,3845.5,12.1572769]
[1641220729655,5.26449673,3845.6,3845.5,12.1572769]
[1641220729855,5.30017828,3845.6,3845.5,12.1572769]
[1641220730059,5.30017828,3845.6,3845.5,6.9557069]
[1641220730714,6.60059988,3845.6,3845.4,1.55342375]
[1641220730911,2.8143513,3845.5,3845.4,1.55342375]
[1641220731112,2.85,3845.4,3844.6,1.19575226]
[1641220731314,1.30042,3845.1,3844.6,1.19575226]
[1641220731511,1.30042,3845.1,3844.7,5.20577896]
[1641220731920,3.55,3844.9,3844.7,5.2018]
[1641220732118,1.01113546,3845.0,3844.7,5.2018]
[1641220732119,3.09624484,3844.8,3844.7,5.2018]
[1641220732317,1.01227231,3845.0,3844.7,5.2018]
[1641220732515,1.01227231,3845.0,3844.6,1.19575226]
[1641220732516,2.31268231,3845.0,3844.6,1.19483226]
[1641220732717,0.6503,3844.8,3844.6,1.19483226]
[1641220732921,0.6503,3844.7,3844.3,1.60876155]
[1641220733116,0.6503,3844.7,3844.0,1.60876155]
[1641220733316,0.6503,3844.7,3844.4,0.00227369]
[1641220733717,1.30055,3844.5,3844.4,0.00227369]
[1641220734120,4.1311158,3844.5,3844.4,0.00227369]
[1641220734380,1.30055,3844.5,3844.0,0.06028943]
[1641220734582,4.42768002,3844.5,3844.0,0.06028943]
[1641220734778,1.3007734,3844.3,3844.1,0.00170527]
[1641220734981,1.3007734,3844.3,3843.6,1.60876155]
[1641220734982,1.9512334,3844.3,3843.7,1.60876155]
[1641220735177,1.04631695,3844.2,3843.7,1.60876155]
[1641220735378,1.04631695,3844.2,3843.8,0.00170527]
[1641220735880,1.3009068,3844.0,3843.4,0.00397897]
[1641220736078,2.60203,3844.0,3843.4,0.00397897]
[1641220736483,2.60203,3844.0,3842.7,3.59362497]
[1641220736685,3.12997214,3843.9,3842.7,3.59362497]
[1641220736885,0.6505,3843.5,3842.8,0.00341054]
[1641220737086,0.6504938,3843.3,3842.8,0.00341054]
[1641220737287,2.63985264,3843.2,3842.8,0.00341054]
[1641220737485,2.63985264,3843.2,3842.7,0.34354786]
[1641220737686,0.00170527,3843.1,3842.7,0.34354786]
[1641220738113,0.6505046,3843.0,3842.7,0.34354786]
[1641220738313,0.6505046,3843.0,3842.8,0.00176527]
[1641220738511,1.3010146,3843.0,3842.8,0.00176527]
[1641220739012,1.3010146,3843.0,3842.7,0.34354786]
[1641220739013,2.7847205,3842.9,3842.7,0.34354786]
[1641220739211,2.7847205,3842.9,3842.8,5.2045]
[1641220739412,2.7847205,3842.9,3842.7,0.24313786]
[1641220740013,0.6506122,3842.3,3842.0,3.20348765]
[1641220740214,1.3012243,3842.6,3842.1,0.06029273]
[1641220740415,1.95185,3842.8,3842.1,0.06427169]
[1641220740620,1.95152,3843.3,3842.1,0.06427169]
[1641220740816,2.94554981,3843.8,3842.4,0.65051]
[1641220741016,1.9514473,3842.9,3842.4,0.65051]
[1641220741214,1.9514473,3842.9,3842.5,0.00170527]
[1641220741215,1.3009273,3842.9,3842.5,0.00170527]
[1641220741614,0.65041,3842.9,3842.3,0.00284211]
[1641220741859,0.00170527,3843.1,3842.3,0.00284211]
[1641220742064,1.33863193,3842.5,3842.3,0.00284211]
[1641220742460,1.98922933,3842.5,3842.3,0.00284211]
[1641220742859,2.63979933,3842.5,3842.2,0.00341054]
[1641220743269,1.30126,3842.4,3842.2,0.00341054]
[1641220744064,1.9518866,3842.4,3842.2,0.00341054]
[1641220744567,1.9518866,3842.4,3842.3,0.00093151]
[1641220744966,1.30126,3842.4,3842.3,0.00377362]
[1641220745607,0.65057,3842.5,3842.3,0.00377362]
[1641220745806,0.65057,3842.5,3842.0,3.48959006]
[1641220746203,0.6506359,3842.4,3842.1,0.00113685]
[1641220746401,1.3012759,3842.4,3842.1,0.00113685]
[1641220747001,2.49178521,3842.4,3842.1,0.00113685]
[1641220747203,1.84114931,3842.4,3842.1,0.00113685]
[1641220747805,1.84114931,3842.4,3842.2,5.2053]
[1641220749106,1.84114931,3842.4,3842.2,5.1553]
[1641220749967,1.19050931,3842.4,3842.2,5.1553]
[1641220750371,0.65059,3842.7,3842.2,5.1553]
[1641220750772,0.00170527,3842.6,3842.2,5.1553]
[1641220750975,0.00170527,3842.6,3842.3,2.94756232]
[1641220751173,0.00113684,3842.5,3842.3,2.94756232]
[1641220751573,3.46716962,3842.5,3842.3,2.94756232]
[1641220751771,0.65059,3842.5,3842.3,2.94756232]
[1641220751973,0.88469,3842.5,3842.3,2.94756232]
[1641220752574,0.88469,3842.5,3842.3,2.84756232]
[1641220753223,1.56407798,3842.5,3842.4,1.20396114]
[1641220753423,2.86540958,3842.5,3842.4,1.20396114]
[1641220753626,2.86654642,3842.5,3842.4,6.45906114]
[1641220754025,5.79626107,3842.5,3842.4,6.46928382]
[1641220755226,5.79626107,3842.5,3842.4,5.26532268]
[1641220755927,11.22886107,3842.5,3842.4,5.21532268]
[1641220756129,6.28044055,3842.5,3842.4,5.21532268]
[1641220756329,0.65088,3842.1,3842.0,1.2078045]
[1641220756527,3.33900874,3842.1,3842.0,6.4134045]
[1641220757168,3.33900874,3842.1,3842.0,5.2056]
[1641220757976,6.4,3842.0,3841.7,0.06074996]
[1641220758176,3.35476064,3841.9,3841.7,0.06074996]
[1641220758373,9.25,3841.8,3840.8,3.20348765]
[1641220758578,0.65094,3841.2,3840.8,3.20348765]
[1641220758784,3.14551442,3841.2,3840.9,0.00511581]
[1641220758975,3.14551792,3841.2,3840.9,0.00511581]
[1641220759177,1.37390534,3841.1,3840.9,0.00511581]
[1641220759373,1.37390534,3841.1,3841.0,6.21]
[1641220759776,1.37390534,3841.1,3841.0,6.21454739]
[1641220760172,4.52390534,3841.1,3841.0,5.21144739]
[1641220760374,5.17492534,3841.1,3841.0,5.21144739]
[1641220760612,9.12887851,3841.1,3841.0,5.21144739]
[1641220760817,8.82887851,3841.1,3841.0,5.21144739]
[1641220761011,8.82887851,3841.1,3841.0,0.00258739]
[1641220761012,12.37887851,3841.1,3841.0,0.00258739]
[1641220761317,0.651094,3840.6,3839.9,3.20348765]
[1641220761514,0.65108,3840.4,3840.0,5.208]
[1641220761719,2.88590632,3840.3,3840.0,5.21368423]
[1641220761919,1.09958062,3840.2,3840.0,5.21368423]
[1641220762524,1.09958062,3840.2,3839.6,3.20348765]
[1641220762525,10.61404876,3840.1,3839.6,3.20348765]
[1641220762721,1.3024192,3840.0,3839.6,3.20348765]
[1641220762920,2.64070632,3840.0,3839.7,0.00170527]
[1641220763117,2.94070632,3840.0,3839.7,0.00170527]
[1641220763719,2.94070632,3840.0,3839.1,0.00511582]
[1641220763720,0.65124,3839.6,3839.1,0.00511582]
[1641220763942,0.6512357,3839.4,3839.1,0.00511582]
[1641220764121,0.6512357,3839.4,3839.2,5.2092]
[1641220764557,0.6512357,3839.4,3839.3,0.00397897]
[1641220764757,0.65123,3839.4,3839.3,5.21327897]
[1641220764957,0.65105,3840.1,3839.3,5.21327897]
[1641220765358,8.36760036,3841.3,3839.4,0.31541054]
[1641220765559,4.149,3841.1,3839.5,5.209]
[1641220765764,0.00568423,3841.0,3839.5,5.86283212]
[1641220765958,0.00568423,3841.0,3839.6,4.20576135]
[1641220765959,0.65094,3840.9,3839.6,4.20576135]
[1641220766160,0.65605581,3840.9,3839.7,5.5207]
[1641220766360,0.00454738,3840.8,3839.9,1.27104903]
[1641220766562,0.00454738,3840.8,3840.0,5.2083]
[1641220766758,0.00397896,3840.7,3840.0,5.2083]
[1641220766961,0.00397896,3840.7,3840.0,8.41178765]
[1641220767166,0.00341054,3840.6,3840.1,1.65089]
[1641220767367,0.00341054,3840.6,3840.2,5.2081]
[1641220767565,0.00284211,3840.5,3840.3,1.0]
[1641220767766,0.00284211,3840.5,3840.4,14.7698]
[1641220768012,2.93341792,3841.3,3840.4,14.7698]
[1641220768208,2.93341792,3841.3,3840.9,1.34977607]
[1641220768409,0.00682108,3841.2,3841.0,5.207]
[1641220768809,0.00625265,3841.1,3841.0,5.207]
[1641220772862,0.00625265,3841.1,3841.0,8.1557822]
[1641220773369,0.82605265,3841.1,3841.0,8.1557822]
[1641220774765,1.12605265,3841.1,3841.0,8.1557822]
[1641220774963,0.30625265,3841.1,3841.0,8.1557822]
[1641220775609,3.25963303,3841.1,3841.0,8.1557822]
[1641220776011,3.25963303,3841.1,3841.0,8.15664786]
[1641220778618,2.95963303,3841.1,3841.0,8.15664786]
[1641220778818,0.00625265,3841.1,3841.0,8.15664786]
[1641220779024,2.90397636,3841.1,3841.0,8.15664786]
[1641220779263,0.00625265,3841.1,3841.0,8.15664786]
[1641220780959,0.06075164,3841.5,3841.1,6.2]
[1641220781161,0.06075164,3841.5,3841.2,5.2067]
[1641220781363,0.00170527,3841.4,3841.2,5.2067]
[1641220781766,0.00113685,3841.3,3841.2,5.2067]
[1641220782367,0.00113685,3841.3,3841.2,8.1554822]
[1641220784417,0.6914226,3841.5,3841.2,8.1554822]
[1641220785019,0.6914226,3841.5,3841.3,4.17390426]
[1641220785221,0.62953411,3841.5,3841.4,5.2064]
[1641220785619,0.63067096,3841.5,3841.4,5.2064]
[1641220786853,0.63067096,3841.5,3841.4,5.20722048]
[1641220787052,0.63067096,3841.5,3841.4,8.15682316]
[1641220787654,0.63067096,3841.5,3841.4,9.38194522]
[1641220788558,0.63067096,3841.5,3841.4,8.15682316]
[1641220789359,3.57661891,3841.5,3841.4,8.15682316]
[1641220791707,2.00338217,3841.5,3841.4,8.15682316]
[1641220791911,0.63067096,3841.5,3841.4,8.15682316]
[1641220794255,1.94885199,3841.5,3841.4,8.15682316]
[1641220794458,1.94885199,3841.5,3841.4,9.38194522]
[1641220795062,1.94885199,3841.5,3841.4,8.15682316]
[1641220795463,23.03385199,3841.5,3841.4,8.15600268]
[1641220795761,8.02385199,3841.5,3841.4,8.15600268]
[1641220795963,8.02385199,3841.5,3841.4,9.38112474]